fUST/lending_fUST_20250109
["ID","MTS","AMOUNT","RATE_DAILY","PERIOD"]
[348171270,1736363436743,-666.14,0.00019178,2]
[348171272,1736363436752,-666.14,0.00019178,2]
[348171274,1736363436762,-500.0,0.00019178,2]
[348171276,1736363436773,-500.0,0.00019178,2]
[348171278,1736363436782,-500.0,0.00019178,2]
[348171280,1736363436792,-500.0,0.00019178,2]
[348171282,1736363436801,-500.0,0.00019178,2]
[348171284,1736363436810,-500.0,0.00019178,2]
[348171286,1736363436819,-500.0,0.00019178,2]
[348171288,1736363436829,-151.0,0.00019178,2]
[348171290,1736363436838,-296.66027784,0.00019178,2]
[348171292,1736363436847,-500.0,0.00019178,2]
[348171294,1736363436857,-151.0,0.00019178,2]
[348171296,1736363436866,-500.0,0.00019178,2]
[348171298,1736363436875,-500.0,0.00019178,2]
[348171300,1736363436884,-500.0,0.00019178,2]
[348171302,1736363436894,-500.0,0.00019178,2]
[348171304,1736363436903,-500.0,0.00019178,2]
[348171306,1736363436913,-500.0,0.00019178,2]
[348171308,1736363436922,-500.0,0.00019178,2]
[348171310,1736363436932,-500.0,0.00019178,2]
[348171312,1736363436941,-500.0,0.00019178,2]
[348171314,1736363436951,-500.0,0.00019178,2]
[348171316,1736363436960,-500.0,0.00019178,2]
[348171318,1736363436969,-375.78299655,0.00019178,2]
[348171320,1736363436979,-626.46,0.00019178,2]
[348171322,1736363436988,-500.0,0.00019178,2]
[348171324,1736363436998,-500.0,0.00019178,2]
[348171326,1736363437007,-500.0,0.00019178,2]
[348171328,1736363437017,-504.64988971,0.00019178,2]
[348171330,1736363437027,-500.0,0.00019178,2]
[348171332,1736363437036,-500.0,0.00019178,2]
[348171334,1736363437046,-500.0,0.00019178,2]
[348171336,1736363437055,-500.0,0.00019178,2]
[348171338,1736363437064,-500.0,0.00019178,2]
[348171340,1736363437073,-500.0,0.00019178,2]
[348171342,1736363437083,-500.0,0.00019178,2]
[348171344,1736363437093,-500.0,0.00019178,2]
[348171346,1736363437103,-500.0,0.00019178,2]
[348171348,1736363437112,-500.0,0.00019178,2]
[348171350,1736363437121,-165.88668,0.00019178,2]
[348171352,1736363437131,-500.0,0.00019451,3]
[348171354,1736363437140,-500.0,0.00019451,3]
[348171356,1736363437149,-666.14,0.00019451,3]
[348171358,1736363437159,-716.21,0.00019451,3]
[348171360,1736363437169,-500.0,0.00019452,3]
[348171362,1736363437178,-500.0,0.00019452,3]
[348171364,1736363437188,-896.11,0.00019452,3]
[348171366,1736363437198,-156.5,0.00019452,3]
[348171368,1736363437207,-500.0,0.00019452,3]
[348171370,1736363437216,-345.55,0.00019452,3]
[348171372,1736363437225,-188.34,0.00019452,3]
[348171374,1736363437235,-516.97,0.00019452,3]
[348171376,1736363437244,-175.99,0.00019452,3]
[348171378,1736363437254,-500.0,0.00019452,3]
[348171380,1736363437263,-500.0,0.00019452,3]
[348171382,1736363437274,-500.0,0.00019452,3]
[348171384,1736363437283,-257.93,0.00019452,3]
[348171386,1736363437292,-505.65054291,0.00019452,3]
[348171388,1736363437301,-151.0,0.00019452,2]
[348171390,1736363437312,-500.0,0.00019452,3]
[348171392,1736363437325,-182.08,0.00019452,3]
[348171394,1736363437335,-151.278337,0.00019452,2]
[348171396,1736363437344,-255.52,0.00019452,3]
[348171398,1736363437354,-501.23173822,0.00019452,3]
[348171400,1736363437365,-500.0,0.00019452,3]
[348171402,1736363437376,-598.13,0.00019452,3]
[348171405,1736363437386,-500.0,0.00019452,3]
[348171406,1736363437396,-151.0,0.00019452,2]
[348171409,1736363437406,-151.0,0.00019452,2]
[348171410,1736363437416,-552.49,0.00019452,3]
[348171413,1736363437426,-151.0,0.00019452,2]
[348171414,1736363437436,-500.0,0.00019452,3]
[348171416,1736363437445,-500.0,0.00019452,3]
[348171419,1736363437456,-638.46,0.00019452,3]
[348171421,1736363437466,-500.0,0.00019452,3]
[348171423,1736363437475,-500.0,0.00019452,3]
[348171425,1736363437485,-500.0,0.00019452,3]
[348171426,1736363437495,-500.0,0.00019452,3]
[348171428,1736363437504,-500.0,0.00019452,3]
[348171430,1736363437513,-502.11741567,0.00019452,3]
[348171432,1736363437523,-500.0,0.00019452,3]
[348171434,1736363437534,-500.0,0.00019452,3]
[348171436,1736363437543,-500.0,0.00019452,3]
[348171438,1736363437553,-500.0,0.00019452,3]
[348171440,1736363437562,-200.86,0.00019452,3]
[348171442,1736363437571,-500.0,0.00019452,3]
[348171444,1736363437581,-173.22,0.00019452,3]
[348171447,1736363437591,-319.6,0.00019452,3]
[348171449,1736363437601,-162.2,0.00019452,3]
[348171451,1736363437610,-515.93,0.00019452,3]
[348171453,1736363437621,-500.0,0.00019452,3]
[348171455,1736363437631,-500.0,0.00019452,3]
[348171457,1736363437642,-500.0,0.00019452,3]
[348171459,1736363437651,-500.0,0.00019452,3]
[348171461,1736363437661,-500.0,0.00019452,3]
[348171463,1736363437671,-333.49221109,0.00019452,3]
[348171466,1736363437681,-500.0,0.00019452,3]
[348171467,1736363437690,-151.0,0.00019452,2]
[348171470,1736363437700,-4665.45,0.00019452,3]
[348171472,1736363437709,-500.0,0.00019452,3]
[348171474,1736363437718,-154.74,0.00019452,3]
[348171476,1736363437728,-500.0,0.00019452,3]
[348171478,1736363437738,-500.0,0.00019452,3]
[348171480,1736363437748,-500.0,0.00019452,3]
[348171482,1736363437757,-500.0,0.00019452,3]
[348171484,1736363437768,-500.0,0.00019452,3]
[348171486,1736363437777,-500.0,0.00019452,3]
[348171488,1736363437787,-500.0,0.00019452,3]
[348171490,1736363437797,-500.0,0.00019452,3]
[348171492,1736363437806,-500.0,0.00019452,3]
[348171494,1736363437815,-306.66303073,0.00019452,3]
[348171496,1736363437825,-500.0,0.00019452,3]
[348171498,1736363437836,-500.0,0.00019452,3]
[348171500,1736363437847,-175.63,0.00019452,3]
[348171502,1736363437857,-1000.0,0.00019721,2]
[348171504,1736363437867,-500.0,0.00019721,2]
[348171506,1736363437877,-666.14,0.00019724,3]
[348171508,1736363437886,-279.73,0.00019725,3]
[348171510,1736363437895,-716.21,0.00019725,3]
[348171512,1736363437904,-896.11,0.00019726,3]
[348171514,1736363437913,-500.0,0.00019726,3]
[348171516,1736363437920,-516.97,0.00019726,3]
[348171518,1736363437929,-500.0,0.00019726,3]
[348171520,1736363437937,-500.0,0.00019726,3]
[348171522,1736363437945,-500.0,0.00019726,3]
[348171524,1736363437953,-500.0,0.00019726,3]
[348171526,1736363437961,-151.0,0.00019726,2]
[348171528,1736363437969,-500.0,0.00019726,3]
[348171530,1736363437977,-197.727184,0.00019726,2]
[348171532,1736363437986,-151.0,0.00019726,2]
[348171534,1736363437994,-638.46,0.00019726,3]
[348171536,1736363438002,-500.0,0.00019726,3]
[348171538,1736363438011,-151.0,0.00019726,2]
[348171540,1736363438020,-151.0,0.00019726,2]
[348171542,1736363438030,-151.0,0.00019726,2]
[348171544,1736363438039,-500.0,0.00019726,3]
[348171546,1736363438049,-151.0,0.00019726,2]
[348171548,1736363438059,-500.0,0.00019726,3]
[348171550,1736363438069,-500.0,0.00019726,3]
[348171553,1736363438078,-500.0,0.00019726,3]
[348171555,1736363438088,-500.0,0.00019726,3]
[348171557,1736363438097,-500.0,0.00019726,3]
[348171558,1736363438106,-271.030568,0.00019726,2]
[348171560,1736363438116,-500.0,0.00019726,3]
[348171562,1736363438126,-500.0,0.00019726,3]
[348171573,1736363438219,-500.0,0.00019726,3]
[348171575,1736363438228,-4665.45,0.00019726,3]
[348171577,1736363438238,-500.0,0.00019726,3]
[348171579,1736363438247,-500.0,0.00019726,3]
[348171581,1736363438257,-500.0,0.00019726,3]
[348171583,1736363438267,-232.3650179,0.00019726,3]
[348171585,1736363438277,-500.0,0.00019726,3]
[348171587,1736363438287,-500.0,0.00019726,3]
[348171589,1736363438296,-500.0,0.00019726,3]
[348171591,1736363438306,-500.0,0.00019726,3]
[348171593,1736363438317,-500.0,0.00019726,3]
[348171595,1736363438328,-323.45,0.00019726,3]
[348171597,1736363438338,-666.14,0.00019899,3]
[348171600,1736363438348,-3396.47108381,0.000199,2]
[348171601,1736363438358,-716.21,0.00019999,3]
[348171603,1736363438368,-2043.0,0.0002,2]
[348171606,1736363438377,-401.60890661,0.0002,3]
[348171608,1736363438387,-516.97,0.0002,3]
[348171610,1736363438397,-500.0,0.0002,3]
[348171612,1736363438407,-225.68556243,0.0002,3]
[348171614,1736363438417,-500.0,0.0002,3]
[348171616,1736363438426,-500.0,0.0002,3]
[348171618,1736363438435,-151.0,0.0002,2]
[348171620,1736363438445,-500.0,0.0002,3]
[348171623,1736363438455,-638.46,0.0002,3]
[348171625,1736363438465,-500.0,0.0002,3]
[348171626,1736363438475,-500.0,0.0002,3]
[348171628,1736363438484,-151.0,0.0002,2]
[348171631,1736363438495,-428.75,0.0002,3]
[348171633,1736363438505,-500.0,0.0002,3]
[348171635,1736363438515,-500.0,0.0002,3]
[348171637,1736363438526,-500.0,0.0002,3]
[348171639,1736363438535,-500.0,0.0002,3]
[348171641,1736363438544,-500.0,0.0002,3]
[348171642,1736363438553,-500.0,0.0002,3]
[348171645,1736363438564,-151.0,0.0002,2]
[348171647,1736363438574,-500.0,0.0002,3]
[348171649,1736363438583,-4665.45,0.0002,3]
[348171651,1736363438593,-500.0,0.0002,3]
[348171652,1736363438603,-500.0,0.0002,3]
[348171655,1736363438614,-500.0,0.0002,3]
[348171656,1736363438624,-500.0,0.0002,3]
[348171659,1736363438633,-500.0,0.0002,3]
[348171661,1736363438643,-500.0,0.0002,3]
[348171663,1736363438655,-151.0,0.0002,2]
[348171664,1736363438665,-500.0,0.0002,3]
[348171666,1736363438675,-500.0,0.0002,3]
[348171668,1736363438684,-666.14,0.00020037,3]
[348171671,1736363438695,-3396.47108353,0.00020038,2]
[348171672,1736363438705,-151.0,0.00020038,2]
[348171675,1736363438714,-151.0,0.00020038,2]
[348171677,1736363438724,-151.0,0.00020038,2]
[348171678,1736363438733,-3396.47108353,0.00020176,2]
[348171681,1736363438742,-516.97,0.00020273,3]
[348171682,1736363438752,-500.0,0.00020273,3]
[348171685,1736363438762,-500.0,0.00020273,3]
[348171687,1736363438774,-500.0,0.00020273,3]
[348171689,1736363438784,-151.0,0.00020273,2]
[348171690,1736363438794,-500.0,0.00020273,3]
[348171693,1736363438804,-151.0,0.00020273,2]
[348171695,1736363438814,-638.46,0.00020273,3]
[348171696,1736363438823,-500.0,0.00020273,3]
[348171698,1736363438833,-151.0,0.00020273,2]
[348171701,1736363438844,-151.0,0.00020273,2]
[348171703,1736363438853,-151.0,0.00020273,2]
[348171705,1736363438862,-500.0,0.00020273,3]
[348171707,1736363438872,-500.0,0.00020273,3]
[348171709,1736363438881,-500.0,0.00020273,3]
[348171711,1736363438892,-500.0,0.00020273,3]
[348171713,1736363438901,-500.0,0.00020273,3]
[348171715,1736363438911,-500.0,0.00020273,3]
[348171717,1736363438921,-500.0,0.00020273,3]
[348171718,1736363438931,-500.0,0.00020273,3]
[348171719,1736363438940,-4665.45,0.00020273,3]
[348171720,1736363438949,-386.3621295,0.00020273,3]
[348171721,1736363438959,-500.0,0.00020273,3]
[348171722,1736363438969,-500.0,0.00020273,3]
[348171723,1736363438979,-500.0,0.00020273,3]
[348171724,1736363438989,-500.0,0.00020273,3]
[348171725,1736363438999,-500.0,0.00020273,3]
[348171726,1736363439008,-500.0,0.00020273,3]
[348171727,1736363439019,-500.0,0.00020273,3]
[348171728,1736363439029,-716.21,0.00020273,3]
[348171729,1736363439039,-3396.47108353,0.00020314,2]
[348171730,1736363439049,-666.14,0.00020399,3]
[348171731,1736363439060,-1500.0,0.000204,2]
[348171732,1736363439070,-3396.47108353,0.00020452,2]
[348171733,1736363439080,-204.754838,0.00020521,2]
[348171734,1736363439091,-516.97,0.00020547,3]
[348171736,1736363439101,-548.35,0.00020547,3]
[348171738,1736363439111,-247.8879054,0.00020547,3]
[348171740,1736363439120,-631.96,0.00020547,3]
[348171742,1736363439129,-151.0,0.00020547,2]
[348171744,1736363439139,-344.29,0.00020547,3]
[348171746,1736363439149,-638.46,0.00020547,3]
[348171748,1736363439158,-500.0,0.00020547,3]
[348171750,1736363439168,-500.0,0.00020547,3]
[348171752,1736363439178,-151.0,0.00020547,2]
[348171754,1736363439187,-532.08,0.00020547,3]
[348171756,1736363439197,-500.0,0.00020547,3]
[348171757,1736363439207,-500.0,0.00020547,3]
[348171759,1736363439216,-500.0,0.00020547,3]
[348171761,1736363439226,-500.0,0.00020547,3]
[348171764,1736363439236,-482.23034195,0.00020547,3]
[348171765,1736363439246,-4665.45,0.00020547,3]
[348171767,1736363439255,-500.0,0.00020547,3]
[348171769,1736363439266,-500.0,0.00020547,3]
[348171771,1736363439280,-500.0,0.00020547,3]
[348171773,1736363439290,-500.0,0.00020547,3]
[348171775,1736363439299,-500.0,0.00020547,3]
[348171778,1736363439309,-151.0,0.00020547,2]
[348171779,1736363439323,-500.0,0.00020547,3]
[348171781,1736363439333,-500.0,0.00020547,3]
[348171783,1736363439343,-716.21,0.00020547,3]
[348171785,1736363439352,-3396.47108353,0.0002059,2]
[348171788,1736363439363,-151.0,0.0002059,2]
[348171790,1736363439373,-221.043714,0.0002059,2]
[348171792,1736363439383,-500.0,0.00020722,2]
[348171793,1736363439393,-3396.47108353,0.00020728,2]
[348171796,1736363439402,-666.14,0.0002082,3]
[348171798,1736363439412,-516.97,0.00020821,3]
[348171800,1736363439422,-151.0,0.00020821,2]
[348171802,1736363439432,-151.0,0.00020821,2]
[348171804,1736363439442,-638.46,0.00020821,3]
[348171806,1736363439452,-500.0,0.00020821,3]
[348171807,1736363439462,-176.07,0.00020821,3]
[348171810,1736363439471,-371.36,0.00020821,3]
[348171811,1736363439481,-500.0,0.00020821,3]
[348171813,1736363439491,-435.15,0.00020821,3]
[348171815,1736363439500,-179.92,0.00020821,3]
[348171817,1736363439510,-4665.45,0.00020821,3]
[348171819,1736363439521,-500.0,0.00020821,3]
[348171821,1736363439530,-500.0,0.00020821,3]
[348171823,1736363439540,-571.23,0.00020821,3]
[348171825,1736363439550,-571.86,0.00020821,3]
[348171827,1736363439560,-500.0,0.00020821,3]
[348171829,1736363439570,-500.0,0.00020821,3]
[348171831,1736363439579,-547.94,0.00020821,3]
[348171833,1736363439589,-716.21,0.00020821,3]
[348171835,1736363439599,-151.0,0.00020865,2]
[348171837,1736363439609,-151.0,0.00020865,2]
[348171839,1736363439618,-151.0,0.00020865,2]
[348171841,1736363439628,-3396.47108353,0.00020866,2]
[348171843,1736363439638,-420.0,0.00020899,2]
[348171845,1736363439648,-5707.29558905,0.00021,2]
[348171847,1736363439657,-151.0,0.00021,2]
[348171849,1736363439667,-3396.47108353,0.00021003,2]
[348171851,1736363439677,-666.14,0.00021092,3]
[348171853,1736363439687,-516.97,0.00021095,3]
[348171855,1736363439696,-638.46,0.00021095,3]
[348171857,1736363439706,-496.11,0.00021095,3]
[348171859,1736363439716,-500.0,0.00021095,3]
[348171861,1736363439726,-4665.45,0.00021095,3]
[348171863,1736363439735,-500.0,0.00021095,3]
[348171865,1736363439745,-500.0,0.00021095,3]
[348171867,1736363439756,-175.61,0.00021095,3]
[348171869,1736363439766,-475.18,0.00021095,3]
[348171872,1736363439781,-716.21,0.00021095,3]
[348171875,1736363439791,-3396.47108353,0.00021141,2]
[348171878,1736363439800,-151.0,0.00021279,2]
[348171880,1736363439809,-251.562952,0.00021279,2]
[348171882,1736363439819,-3396.47108353,0.00021279,2]
[348171884,1736363439828,-204.754838,0.00021288,2]
[348171886,1736363439838,-666.14,0.00021368,3]
[348171888,1736363439847,-516.97,0.00021369,3]
[348171890,1736363439857,-638.46,0.00021369,3]
[348171892,1736363439867,-500.0,0.00021369,3]
[348171894,1736363439876,-4665.45,0.00021369,3]
[348171896,1736363439885,-500.0,0.00021369,3]
[348171897,1736363439895,-500.0,0.00021369,3]
[348171900,1736363439905,-716.21,0.00021369,3]
[348171902,1736363439915,-3396.47108353,0.00021417,2]
[348171904,1736363439924,-1500.0,0.000215,2]
[348171906,1736363439935,-251.931,0.00021529,2]
[348171907,1736363439944,-3396.47108353,0.00021555,2]
[348171909,1736363439954,-2043.0,0.000216,4]
[348171912,1736363439963,-478.417269,0.00021643,2]
[348171913,1736363439973,-478.417269,0.00021643,2]
[348171915,1736363439983,-516.97,0.00021643,3]
[348171917,1736363439993,-151.0,0.00021643,2]
[348171920,1736363440003,-151.0,0.00021643,2]
[348171921,1736363440012,-151.0,0.00021643,2]
[348171923,1736363440024,-638.46,0.00021643,3]
[348171926,1736363440034,-500.0,0.00021643,3]
[348171927,1736363440043,-4665.45,0.00021643,3]
[348171929,1736363440053,-500.0,0.00021643,3]
[348171931,1736363440062,-500.0,0.00021643,3]
[348171933,1736363440072,-716.21,0.00021643,3]
[348171935,1736363440082,-413.857,0.0002166,2]
[348171937,1736363440091,-150.0,0.00021688,2]
[348171939,1736363440100,-535.0,0.00021688,2]
[348171941,1736363440109,-2081.0,0.00021688,2]
[348171943,1736363440119,-2318.0,0.00021688,2]
[348171945,1736363440129,-151.0,0.00021688,2]
[348171947,1736363440138,-151.0,0.00021688,2]
[348171949,1736363440148,-151.0,0.00021688,2]
[348171951,1736363440157,-3396.47108353,0.00021693,2]
[348171953,1736363440167,-666.14,0.0002183,3]
[348171955,1736363440177,-151.0,0.00021831,2]
[348171957,1736363440186,-3396.47108353,0.00021831,2]
[348171959,1736363440195,-516.97,0.00021917,3]
[348171961,1736363440206,-638.46,0.00021917,3]
[348171963,1736363440216,-221.62,0.00021917,3]
[348171965,1736363440225,-4665.45,0.00021917,3]
[348171967,1736363440234,-380.02,0.00021917,3]
[348171969,1736363440244,-500.0,0.00021917,3]
[348171971,1736363440253,-716.21,0.00021917,3]
[348171973,1736363440263,-3396.47108353,0.00021969,2]
[348171975,1736363440274,-605.588,0.0002202,2]
[348171977,1736363440283,-204.754838,0.00022055,2]
[348171979,1736363440292,-788.0,0.000221,2]
[348171981,1736363440303,-3396.47108353,0.00022107,2]
[348171991,1736363440390,-666.14,0.0002219,3]
[348171993,1736363440401,-516.97,0.00022191,3]
[348171995,1736363440410,-151.0,0.00022191,7]
[348171997,1736363440420,-638.46,0.00022191,3]
[348171999,1736363440430,-4665.45,0.00022191,3]
[348172001,1736363440440,-165.53,0.00022191,3]
[348172003,1736363440449,-716.21,0.00022191,3]
[348172005,1736363440458,-3396.47108353,0.00022245,2]
[348172007,1736363440467,-3396.47108353,0.00022383,2]
[348172009,1736363440477,-151.0,0.00022465,7]
[348172011,1736363440486,-151.0,0.00022465,7]
[348172013,1736363440495,-151.0,0.00022465,7]
[348172015,1736363440504,-516.97,0.00022465,3]
[348172017,1736363440514,-151.0,0.00022465,7]
[348172019,1736363440525,-151.0,0.00022465,7]
[348172021,1736363440535,-151.0,0.00022465,7]
[348172023,1736363440544,-638.46,0.00022465,3]
[348172025,1736363440554,-4665.45,0.00022465,3]
[348172027,1736363440563,-716.21,0.00022465,3]
[348172029,1736363440572,-3396.47108353,0.00022521,2]
[348172031,1736363440583,-666.14,0.00022658,3]
[348172033,1736363440592,-3396.47108353,0.00022659,2]
[348172035,1736363440601,-1200.0,0.00022663,2]
[348172037,1736363440610,-151.0,0.00022663,7]
[348172039,1736363440620,-151.0,0.00022663,7]
[348172041,1736363440629,-516.97,0.00022739,3]
[348172043,1736363440638,-151.0,0.00022739,7]
[348172045,1736363440648,-638.46,0.00022739,3]
[348172047,1736363440657,-159.236427,0.00022739,7]
[348172049,1736363440667,-151.0,0.00022739,7]
[348172051,1736363440676,-151.0,0.00022739,7]
[348172053,1736363440686,-4665.45,0.00022739,3]
[348172055,1736363440695,-716.21,0.00022739,3]
[348172057,1736363440704,-160.26466,0.00022759,2]
[348172059,1736363440713,-587.0,0.00022776,2]
[348172061,1736363440722,-3396.47108353,0.00022797,2]
[348172063,1736363440731,-151.0,0.000228,10]
[348172065,1736363440740,-195.35,0.00022835,2]
[348172067,1736363440749,-151.0,0.00022837,7]
[348172069,1736363440758,-12869.45794181,0.00022928,2]
[348172071,1736363440771,-3396.47108353,0.00022934,2]
[348172073,1736363440781,-1000.0,0.00022937,2]
[348172074,1736363440790,-195.5189044,0.00022941,2]
[348172077,1736363440799,-666.14,0.00022997,3]
[348172079,1736363440809,-478.417269,0.00022999,7]
[348172081,1736363440818,-478.417269,0.00022999,7]
[348172083,1736363440828,-151.0,0.00022999,7]
[348172085,1736363440837,-195.0,0.00023009,2]
[348172086,1736363440846,-516.97,0.00023013,3]
[348172089,1736363440855,-638.46,0.00023013,3]
[348172091,1736363440865,-4665.45,0.00023013,3]
[348172092,1736363440874,-716.21,0.00023013,3]
[348172095,1736363440884,-666.14,0.00023072,3]
[348172097,1736363440893,-3396.47108353,0.00023072,2]
[348172098,1736363440902,-1421.95474131,0.00023084,2]
[348172100,1736363440912,-666.14,0.00023087,3]
[348172103,1736363440921,-151.0,0.00023088,7]
[348172105,1736363440930,-151.0,0.00023088,7]
[348172107,1736363440940,-151.0,0.00023088,7]
[348172108,1736363440949,-151.0,0.00023088,7]
[348172110,1736363440958,-151.0,0.00023088,7]
[348172112,1736363440968,-151.0,0.00023088,7]
[348172114,1736363440977,-151.0,0.00023088,7]
[348172116,1736363440987,-151.0,0.00023088,7]
[348172118,1736363440996,-151.0,0.00023088,7]
[348172120,1736363441006,-256.718656,0.00023088,7]
[348172122,1736363441015,-151.0,0.00023088,7]
[348172124,1736363441027,-151.0,0.00023088,7]
[348172126,1736363441036,-3200.64948581,0.00023098,2]
[348172128,1736363441045,-152.55,0.000231,31]
[348172130,1736363441055,-152.55,0.000231,31]
[348172132,1736363441064,-152.55,0.000231,31]
[348172134,1736363441074,-152.55,0.000231,31]
[348172136,1736363441083,-152.55,0.000231,31]
[348172138,1736363441093,-152.55,0.000231,31]
[348172140,1736363441102,-152.55,0.000231,31]
[348172142,1736363441111,-151.0,0.00023172,2]
[348172144,1736363441121,-500.0,0.00023173,2]
[348172146,1736363441130,-500.94274312,0.00023173,2]
[348172148,1736363441140,-500.0,0.00023173,2]
[348172150,1736363441150,-266.64454325,0.00023173,2]
[348172152,1736363441159,-500.16644368,0.00023173,2]
[348172154,1736363441169,-152.07516425,0.00023173,2]
[348172156,1736363441179,-220.31280468,0.00023173,2]
[348172158,1736363441188,-428.63476919,0.00023173,2]
[348172160,1736363441197,-151.08191301,0.00023173,2]
[348172162,1736363441207,-580.13444843,0.00023173,2]
[348172164,1736363441216,-1000.0,0.00023176,2]
[348172166,1736363441226,-155.0,0.00023177,2]
[348172168,1736363441235,-155.0,0.00023177,2]
[348172170,1736363441244,-155.0,0.00023177,2]
[348172172,1736363441253,-155.63,0.00023177,2]
[348172174,1736363441263,-151.0,0.00023178,7]
[348172176,1736363441273,-635.05785,0.00023178,2]
[348172178,1736363441286,-666.14,0.00023183,3]
[348172180,1736363441295,-666.14,0.00023183,3]
[348172182,1736363441305,-666.14,0.00023183,3]
[348172184,1736363441315,-666.14,0.00023183,3]
[348172186,1736363441328,-666.28,0.00023183,3]
[348172188,1736363441337,-151.0,0.00023184,7]
[348172190,1736363441346,-151.0,0.00023184,7]
[348172192,1736363441355,-151.0,0.00023184,7]
[348172194,1736363441364,-151.0,0.00023184,7]
[348172196,1736363441374,-151.0,0.00023184,7]
[348172198,1736363441384,-151.0,0.00023184,7]
[348172200,1736363441395,-151.0,0.00023184,7]
[348172202,1736363441405,-151.0,0.00023184,7]
[348172204,1736363441415,-151.0,0.00023184,7]
[348172206,1736363441426,-151.0,0.00023184,7]
[348172208,1736363441436,-151.0,0.00023184,7]
[348172210,1736363441446,-151.0,0.00023184,7]
[348172212,1736363441456,-151.0,0.00023184,7]
[348172214,1736363441465,-151.0,0.00023184,7]
[348172216,1736363441475,-151.0,0.00023184,7]
[348172217,1736363441483,-151.0,0.00023184,7]
[348172218,1736363441492,-151.0,0.00023184,7]
[348172219,1736363441501,-151.0,0.00023184,7]
[348172220,1736363441510,-151.0,0.00023184,7]
[348172221,1736363441519,-252.897328,0.00023184,7]
[348172223,1736363441534,-151.0,0.00023184,7]
[348172225,1736363441543,-151.566451,0.00023184,7]
[348172227,1736363441553,-151.0,0.00023184,7]
[348172229,1736363441563,-151.0,0.00023184,7]
[348172231,1736363441572,-151.0,0.00023184,7]
[348172233,1736363441581,-151.0,0.00023184,7]
[348172235,1736363441591,-151.0,0.00023184,7]
[348172237,1736363441600,-478.417269,0.00023184,7]
[348172239,1736363441610,-478.417269,0.00023184,7]
[348172241,1736363441619,-478.417269,0.00023184,7]
[348172243,1736363441628,-478.417269,0.00023184,7]
[348172245,1736363441638,-478.417269,0.00023184,7]
[348172247,1736363441647,-478.417269,0.00023184,7]
[348172249,1736363441656,-478.417269,0.00023184,7]
[348172251,1736363441666,-478.417269,0.00023184,7]
[348172253,1736363441675,-478.417269,0.00023184,7]
[348172255,1736363441684,-478.417269,0.00023184,7]
[348172257,1736363441693,-478.417269,0.00023184,7]
[348172259,1736363441703,-478.417269,0.00023184,7]
[348172261,1736363441712,-478.417269,0.00023184,7]
[348172263,1736363441721,-478.417269,0.00023184,7]
[348172265,1736363441730,-478.417269,0.00023184,7]
[348172267,1736363441740,-478.417269,0.00023184,7]